Cogmind - Beta 15 *** ADVENTURER MODE // 2025.06.06 @ 18:45:37 Player: triibiis Result: Destroyed by D-53 Grenadier with Mini Grenade Launcher Performance ------------- Evolutions (0) 0 Regions Visited (2) 400 Robots Destroyed (25) 125 Value Destroyed (492) 492 Prototype IDs (0) 0 Alien Tech Used (0) 0 Bonus (0) 0 TOTAL SCORE: 1017 Bonus ------- None Cogmind --------- Core Integrity 0/250 Matter 300/300 Energy 249/250 System Corruption 0% Temperature Cool (10) Movement Core (500) Ox9 Location -10/Mines Parts ------- > --- POWER (1) -------- Ion Engine > --- PROPULSION (2) --- (None) > --- UTILITY (2) ------ Large Storage Unit > --- WEAPON (2) ------- Medium Laser Light Assault Rifle > --- INVENTORY (15) --- Ion Engine Medium Laser Mining Laser Peak State ------------ > --- POWER ------------ Light Nuclear Core > --- PROPULSION ------- Aluminum Leg Aluminum Leg > --- UTILITY ---------- Large Storage Unit Sensor Array > --- WEAPON ----------- Medium Laser Light Assault Rifle > --- INVENTORY -------- Ion Engine Ion Engine Medium Laser Mining Laser [Rating: 9] Favorites ----------- Power Ion Engine Engine Ion Engine Power Core Light Nuclear Core Propulsion Aluminum Leg Leg Aluminum Leg Wheel Wheel Utility Large Storage Unit Device Sensor Array Storage Large Storage Unit Processor Targeting Computer Weapon Light Assault Rifle Energy Gun Medium Laser Ballistic Gun Light Assault Rifle Special Weapon Mining Laser Build | -11 -10 -10 ------- Run | Yrd Mat Min Slots Evolved . | . . . Power . | . . . Propulsion . | . . . Utility . | . . . Weapon . | . . . Parts Attached 18 | 6 12 . Power 3 | 1 2 . Engine 2 | 1 1 . Core 1 | . 1 . Reactor . | . . . Propulsion 4 | 2 2 . Treads . | . . . Leg 2 | . 2 . Wheel 2 | 2 . . Hover . | . . . Flight . | . . . Utility 6 | 1 5 . Device 1 | . 1 . Storage 4 | 1 3 . Processor 1 | . 1 . Hackware . | . . . Protection . | . . . Artifact . | . . . Weapon 5 | 2 3 . Energy Gun 2 | 1 1 . Energy Cannon . | . . . Ballistic Gun 2 | 1 1 . Ballistic Cannon . | . . . Launcher . | . . . Special Weapon 1 | . 1 . Impact Weapon . | . . . Slashing Weapon . | . . . Piercing Weapon . | . . . Special Melee Weapon . | . . . Unidentified Prototypes . | . . . Parts Lost 9 | . 7 2 Power 1 | . 1 . Propulsion 4 | . 2 2 Utility 1 | . 1 . Weapon 3 | . 3 . Highest Loss Streak 2 | . 2 2 To Critical Strikes . | . . . Average Backups 4 | 2 4 3 Power 1 | . 1 1 Propulsion 1 | 1 1 . Utility . | . . . Weapon 2 | . 2 2 Tool/Special . | . . . Unused Backups 2 | . . 2 Power . | . . . Propulsion . | . . . Utility . | . . . Weapon 2 | . . 2 Tool/Special . | . . . Average Slot Usage (%) 91 | . 91 83 Engine 10 | . 10 14 Core 2 | . 3 . Leg 14 | . 13 26 Wheel 12 | . 13 . Device 7 | . 8 . Storage 14 | . 14 14 Energy Gun 12 | . 12 14 Ballistic Gun 13 | . 13 14 Special Weapon 1 | . 1 . Peak Build Rating 9 | 6 9 6 Average Rating 6 | 5 6 5 On Entrance 4 | . 6 6 Naked Turns . | . . . Heaviest Build 29 | 13 29 28 Greatest Support 26 | 26 26 20 Greatest Overweight (x) 9 | . 9 9 Average Overweight (x) . | . . 1 Largest Inventory Capacity 25 | 8 25 15 Average Capacity 12 | 7 12 15 Most Carried 8 | 4 8 3 Average Carried 4 | 2 4 3 Final Capacity 15 | 8 15 15 Final Carried 4 | 4 3 3 Class Distribution -------------------- 100% | Mutant Dominant Class ---------------- Mutant | -10/Materials Mutant | -10/Mines Resources | -11 -10 -10 ----------- Run | Yrd Mat Min Matter Collected 466 | 214 252 . Remotely . | . . . Salvage Created 719 | . 719 . Parts 55 | . 55 . Haulers Intercepted . | . . . Recyclers Shooed . | . . . Parts Field Recycled . | . . . Retrieved Matter . | . . . Parts Self-Destructed . | . . . Prevented . | . . . Kills | -11 -10 -10 ------- Run | Yrd Mat Min Combat Hostiles Destroyed 19 | . 19 . Guns 18 | . 18 . Cannons 1 | . 1 . Classes Destroyed 6 | . 6 . Worker 1 | . 1 . Builder 2 | . 2 . Recycler 1 | . 1 . Watcher 2 | . 2 . Swarmer 9 | . 9 . Grunt 10 | . 10 . Best Kill Streak 10 | . 10 . Combat Bots Only 6 | . 6 . Max Kills in Single Turn 2 | . 2 . Gunslinging 1 | . 1 . Exploded . | . . . Melee . | . . . Uniques/NPCs Destroyed . | . . . Combat | -11 -10 -10 -------- Run | Yrd Mat Min Hostile Shots Fired 127 | . 123 4 Missed 25 | . 25 . Hits 102 | . 98 4 Projectile 102 | . 98 4 AOE 4 | . . 4 Damage Taken 850 | . 725 125 Core 260 | . 179 81 Absorbed by Shields . | . . . Ignored by Resistances 269 | . 235 34 Core Remaining (%) 100 | 100 . . Volleys Fired 69 | . 68 1 Largest 2 | . 2 2 Hottest 120 | . 120 70 Shots Fired 117 | . 115 2 Gun 114 | . 112 2 Cannon . | . . . Launcher . | . . . Special 3 | . 3 . Kinetic 62 | . 61 1 Thermal 41 | . 40 1 Explosive . | . . . Electromagnetic 14 | . 14 . Robot Hit Streak 36 | . 36 1 Robot Miss Streak 3 | . 3 1 Penetration Max . | . . . Secondary Targets 4 | . 4 . Max Gunslinging Chain 1 | . 1 . Shots Hit Robots 87 | . 86 1 Core Hits 42 | . 42 . Critical Kills . | . . . Critical Parts Destroyed . | . . . Critical Strikes 2 | . 2 . Burn 2 | . 2 . Melee Attacks . | . . . Impact . | . . . Slashing . | . . . Piercing . | . . . Sneak Attacks . | . . . Combat Hostiles . | . . . Follow-up Attacks . | . . . Damage Inflicted 971 | . 971 . Guns 923 | . 923 . Cannons . | . . . Explosions . | . . . Melee . | . . . Ramming . | . . . Kinetic 359 | . 359 . Thermal 447 | . 447 . Explosive . | . . . Electromagnetic 165 | . 165 . Impact . | . . . Slashing . | . . . Piercing . | . . . Highest Corruption . | . . . Average Corruption . | . . . Corruption Purged . | . . . Corruption Blocked . | . . . Overload Shots . | . . . Overflow Damage . | . . . Projectiles . | . . . Explosions . | . . . Melee . | . . . Knockbacks . | . . . Impact . | . . . Kinetic . | . . . Secondary . | . . . Self-Inflicted Damage . | . . . Shots . | . . . Rammed . | . . . Targets Rammed . | . . . Kicked . | . . . Crushed . | . . . Highest Temperature 285 | . 285 30 Average Temperature 103 | . 104 18 Received Heat Transfer 315 | . 315 . Siege Activations . | . . . Martial Activations . | . . . Shielding Activations . | . . . Robots Disrupted . | . . . Combat Hostiles . | . . . Robots Corrupted . | . . . Combat Hostiles . | . . . Parts Fried . | . . . Impact Corruptions . | . . . Robots Melted . | . . . Combat Hostiles . | . . . Parts Melted 1 | . 1 . Heat Transferred 1432 | . 1432 . Parts Sabotaged . | . . . Parts Stolen . | . . . Parts Stripped . | . . . Power Chain Reactions . | . . . Alert | -11 -10 -10 ------- Run | Yrd Mat Min Maximum Alert Level . | . . . Low Security (%) 100 | 100 100 100 Level 1 . | . . . Level 2 . | . . . Level 3 . | . . . Level 4 . | . . . Level 5 . | . . . High Security . | . . . Max Security . | . . . Peak Influence 156 | . 156 21 Initial 21 | . . 21 Average 35 | . 40 7 Influence Increases 530 | . 530 . Destroy 0b10 Robot/C 380 | . 380 . Destroy 0b10 Robot/NC 30 | . 30 . Destroy Leader 84 | . 84 . Successful Hack 20 | . 20 . Destroy Structure 1 | . 1 . Lose Combat Pursuer 15 | . 15 . Influence Decreases 530 | . 464 66 Entered New Map 45 | . . 45 Time Decay 449 | . 428 21 Lost Part 36 | . 36 . Squads Dispatched 5 | . 5 . Investigation 5 | . 5 . Extermination . | . . . Reinforcement . | . . . Assault . | . . . Garrison . | . . . Intercept . | . . . Searches Triggered . | . . . Construction Impeded . | . . . Haulers Reinforced . | . . . Active Scanning Responses . | . . . Cargo Convoy Interrupts . | . . . Stealth | -11 -10 -10 --------- Run | Yrd Mat Min Distress Signals 1 | . 1 . Communications Jammed . | . . . Distress Signals . | . . . Times Spotted 28 | . 26 2 Peak Tracking Total 5 | . 5 2 Tactical Retreats 1 | . 1 . Traps | -11 -10 -10 ------- Run | Yrd Mat Min Traps Triggered 3 | . 3 . Indirectly . | . . . Trap Hack Attempts . | . . . Triggered . | . . . Disarmed 1 | . 1 . Reprogrammed . | . . . Reused . | . . . Traps Extracted . | . . . Installed . | . . . Triggered . | . . . Machines | -11 -10 -10 ---------- Run | Yrd Mat Min Machines Disabled . | . . . Max in Single Turn . | . . . Machines Repaired . | . . . Machines Dismantled . | . . . Machines Sabotaged . | . . . Overloaded Fab Kills . | . . . Hacking | -11 -10 -10 --------- Run | Yrd Mat Min Machines Accessed 8 | . 8 . Terminals 8 | . 8 . Fabricators . | . . . Repair Stations . | . . . Recycling Units . | . . . Scanalyzers . | . . . Garrison Access . | . . . Total Hacks 27 | . 27 . Successful 9 | . 9 . Failed 18 | . 18 . Catastrophic 5 | . 5 . Database Lockouts . | . . . Manual 25 | . 25 . Terminals 27 | . 27 . Fabricators . | . . . Repair Stations . | . . . Recycling Units . | . . . Scanalyzers . | . . . Garrison Access . | . . . Terminal Hacks 9 | . 9 . Branch Access Points 1 | . 1 . Emergency Access Points 2 | . 2 . Terminal Index 1 | . 1 . Alert Level 1 | . 1 . Locate Traps 1 | . 1 . Disarm Traps 2 | . 2 . Hauler Manifests 1 | . 1 . Fabricator Hacks . | . . . Repair Station Hacks . | . . . Recycling Unit Hacks . | . . . Scanalyzer . | . . . Garrison Access Hacks . | . . . Unauthorized Hacks . | . . . Terminals . | . . . Fabricators . | . . . Repair Stations . | . . . Recycling Units . | . . . Scanalyzers . | . . . Garrison Access . | . . . Data Cores Recovered . | . . . Used . | . . . Hacking Detections 8 | . 8 . Full Trace Events 8 | . 8 . Feedback Events . | . . . Feedback Blocked . | . . . Robot Schematics Acquired . | . . . Robots Built . | . . . Authchips . | . . . Time . | . . . Total Robot Build Rating . | . . . Part Schematics Acquired . | . . . Parts Built . | . . . Authchips . | . . . Time . | . . . Total Part Build Rating . | . . . Parts Repaired . | . . . Time . | . . . Parts Recycled . | . . . Recycled Matter . | . . . Retrieved Matter . | . . . Retrieved Components . | . . . Parts Scanalyzed . | . . . Part Schematics Acquired . | . . . Parts Damaged . | . . . Bothacking | -11 -10 -10 ------------ Run | Yrd Mat Min Used RIF Installer . | . . . Robots Hacked . | . . . Non-combat . | . . . Combat . | . . . Robot Hacks Applied . | . . . Relay Couplers Released . | . . . Fabnet Peak Effective % . | . . . Robots Rewired . | . . . Allies Hacked . | . . . Hacks Repelled . | . . . Allies | -11 -10 -10 -------- Run | Yrd Mat Min Total Allies . | . . . Largest Group . | . . . Highest-Rated Group . | . . . Highest-Rated Ally . | . . . Total Orders . | . . . Ally Attacks . | . . . Total Damage . | . . . Kills . | . . . Allies Corrupted . | . . . Allies Melted . | . . . Intel | -11 -10 -10 ------- Run | Yrd Mat Min Active Infowar (turns) 661 | . 661 . Sensors 661 | . 661 . Robot Analysis Total . | . . . Derelict Logs Recovered 1 | . . 1 Drone Launches . | . . . Drone Recoveries . | . . . Exploration | -11 -10 -10 ------------- Run | Yrd Mat Min Turns Passed 1292 | 93 1111 88 Spaces Moved 869 | 91 733 45 Core 8 | 5 2 1 Treads . | . . . Legs 262 | . 218 44 Wheels 599 | 86 513 . Hover . | . . . Flight . | . . . Fastest Speed 50 | 50 90 190 Average Speed 123 | 88 123 200 Slowest Speed 500 | 100 500 500 Overloaded Moves . | . . . Propulsion Burnouts . | . . . Robots Hopped . | . . . Potential Cave-ins . | . . . Cave-ins Triggered . | . . . Exploration Rate (%) 34 | 5 85 12 Regions Visited 2 Branch Regions 1 Pre-discovered Areas . | . . . Known Exits Taken 1 | . 1 . Unknown Exits Taken 1 | 1 . . Scrap Searched . | . . . Spaces Dug 1 | . 1 . Terrain Destroyed 1 | . 1 . Melee . | . . . Projectile 1 | . 1 . AOE . | . . . Terrain Rammed . | . . . Walls Destroyed . | . . . Machines Disabled . | . . . Actions | -11 -10 -10 --------- Run | Yrd Mat Min Total 971 | 100 825 46 Wait . | . . . Move 867 | 90 732 45 Hop . | . . . Pick Up 7 | 4 3 . Fast Attach 16 | 6 10 . Attach 5 | . 5 . Detach . | . . . Swap 3 | . 3 . Drop 4 | . 4 . Fire 69 | . 68 1 Melee . | . . . Ram . | . . . Kick . | . . . Crush . | . . . Escape Stasis . | . . . Rewire . | . . . Trap . | . . . Miscellaneous . | . . . Route ------- -11/Scrapyard -10/Materials (discovered 4 exits: [*Mat x2] / *Min x2) -10/Mines History --------- Turn | Location | Event 31 | -11/Scrapyard | Discovered new exit (range 16) 94 | -11/Scrapyard | Entered Materials 203 | -10/Materials | Identified exit to Mines 314 | -10/Materials | Build established: Mutant 436 | -10/Materials | Discovered new exit (range 12) 682 | -10/Materials | Discovered new exit (range 15) 990 | -10/Materials | Core integrity fell below 50% 1205 | -10/Materials | Entered Mines 1217 | -10/Mines | Learned Materials garrison access intel 1227 | -10/Mines | Assembled infested the area 1292 | -10/Mines | Core integrity fell below 20% 1293 | -10/Mines | Destroyed by D-53 Grenadier with Mini Grenade Launcher Last Messages --------------- R-06 Scavenger inserts Lgt. Ion Engine into recycling unit. Recycling unit begins recycling process. Recycling unit begins matter transfer process. K-01 Serf cleans the Terminal. R-06 Scavenger collects Wheel. R-06 Scavenger collects Hover Unit. LOCATION=MINES GOAL=ESCAPE Something is scanning the area. Acquired derelict log, extracted data. Data stored: Materials garrison access intel. ALERT: Infestation in the mines, dispatching Demolisher response squad. C-30 ARC bursts open, deploying its payload. D-53 Grenadier unfolds itself. Aluminum Leg destroyed. HV Slug penetrates Wall. Aluminum Leg destroyed. HV Slug penetrates Wall. Map ----- +----------------------------------------------------+ | | | | | | | | | | | | | | | | | | | | | | | | | | | | | | | | | ??????????????????????????????????????????????? | | ??????????????????????????????????????????????? | | ???????????????????????#####??????????????????? | | ??????????????????????## ##?????????????????? | | ?????????????????????## #?????????????????? | | ??????????????????#### #???#####?????????? | | ?????????????????## ##??## #####?????? | | ????????????????## ##??# ##????? | | ????????????????# #??# #????? | | ????????????????# @ #??# #### #??? | | ????????????????## #??## #?????? | | ?????????????? t ##??# #?????????? | | ????????????#;## # d # #### #??????????? | | ?????????????? ;#d # ## #??????????? | | ?????????????#?# ## ### ##?????????? | | ???????????????# ?# #?## t #?????????? | | ???????????????#??# #??# #?????????? | | ??????????????????# #??## """ ##?????????? | | ?????????????????? ????## """ ##??????????? | | ?????????????????? "?????# """ #???????????? | | ??????????????????#%?????# ##???????????? | | ???????????????????"?????# ##????????????? | | ??????????????????? ?????## ##?????????????? | | ???????????????????#??????# ####??????????????? | | ?????????????????????????? ?????????????????? | | ????????????????????????? ?????????????????? | | ????????????????????????#####?????????????????? | | ??????????????????????????????????????????????? | | ??????????????????????????????????????????????? | | ??????????????????????????????????????????????? | | ??????????????????????????????????????????????? | | ??????????????????????????????????????????????? | | ??????????????????????????????????????????????? | | ??????????????????????????????????????????????? | +----------------------------------------------------+ Best States ------------- Heat Dissipation 25 Energy Generation 14 Energy Capacity 250 Matter Stores 300 Matter Capacity 300 Sight Range 16 Robot Scan Range 14 Terrain Scan Density 10 Resistance: KI 20 Resistance: TH 20 Resistance: EX 20 Resistance: EM 20 Resistance: I 20 Resistance: S 20 Resistance: P 20 Evasion (%) 42 Targeting Accuracy 5 Offensive Hacking 10 Item Schematics ----------------- None Robot Schematics ------------------ None Fabricated ------------ Nothing Repaired ---------- Nothing Alien Tech Used ----------------- None Achievements -------------- None Challenges ------------ None Game ------ Seed SuperquantumCoolantLaser Manual? 0 Play Time 00:13:07 Cumulative 9.4 hours Start 2025.06.06 @ 18:31:53 End 2025.06.06 @ 18:45:37 Sessions 1 Manual Loads 0 Difficulty Adventurer Special Mode None Game No. 22 Rogue 0 Adventurer 22 Explorer 0 Win Type - Total 0 Types 0/0/0/0/0/0/0/0/0/0 Lore% 15 Gallery% 12 Achievement% 16 Wizard Run 0 Options --------- Layout 1 ASCII 0 Keyboard 0 Movement Arrows Keybinds 0 Fullscreen 1 Font 36/Smallcaps Map View 50x43 Zoom Use 0% Tactical HUD 0 Map Filters NONE Filters NONE Steam 1 RUN: b1a37ad7-61f3-4465-924c-31cc04603207